bitfinex-derivatives/quotes_ETHF0:USTF0_20250807
["timestamp","ask_amount","ask_price","bid_price","bid_amount"]
[1754593033403,1.2129,3828.4,3828.3,23.21354]
[1754593033813,1.4965,3828.4,3828.3,23.21354]
[1754593034110,0.4795,3828.4,3828.3,23.21354]
[1754593034413,1.6987,3828.6,3828.5,2.24081]
[1754593034613,1.6987,3828.6,3828.5,20.04481]
[1754593034813,1.6987,3828.6,3828.5,19.02161]
[1754593035408,1.5024,3828.5,3828.4,0.52232]
[1754593035613,1.6987,3828.5,3828.3,21.53513]
[1754593035911,40.8,3828.8,3828.3,21.53513]
[1754593035912,2.22103,3828.4,3828.3,17.805]
[1754593037414,2.22103,3828.4,3828.2,0.52235]
[1754593037614,1.6987,3828.3,3828.2,18.32535]
[1754593038814,1.6987,3828.3,3828.2,0.52235]
[1754593039016,2.22105,3828.2,3828.1,0.52236]
[1754593039218,2.22105,3828.2,3828.1,18.32436]
[1754593039416,1.6987,3828.2,3828.1,17.802]
[1754593039712,1.6987,3828.0,3827.9,21.0098]
[1754593040626,1.6987,3828.0,3827.9,22.4313]
[1754593040936,1.6987,3828.0,3827.9,22.7283]
[1754593041111,1.6987,3828.0,3827.9,17.802]
[1754593041508,1.6987,3827.6,3827.5,1.94125]
[1754593041715,1.6987,3827.6,3827.5,20.04195]
[1754593042119,2.22113,3827.6,3827.4,3.2078]
[1754593042316,0.6909,3827.5,3827.4,21.0088]
[1754593042516,1.6987,3827.5,3827.4,21.0088]
[1754593042712,42.1878,3827.5,3827.4,3.2078]
[1754593042911,1.21336,3827.4,3827.2,0.52248]
[1754593043112,1.6987,3827.3,3827.2,0.52248]
[1754593043509,0.52249,3827.2,3827.1,18.32449]
[1754593043814,1.21342,3827.0,3826.9,0.52253]
[1754593044035,1.21343,3827.0,3826.8,0.52254]
[1754593044318,2.22126,3826.7,3826.6,3.2078]
[1754593044518,2.22126,3826.7,3826.2,3.2078]
[1754593044519,1.21348,3826.5,3826.2,3.2078]
[1754593044714,1.6987,3826.3,3826.2,4.22483]
[1754593044916,1.6987,3826.3,3826.2,3.7022]
[1754593045111,1.6987,3826.3,3826.2,0.4944]
[1754593045311,1.6987,3826.3,3826.2,1.01703]
[1754593045712,1.6987,3826.3,3826.0,0.2997]
[1754593045713,0.6909,3826.1,3826.0,1.01705]
[1754593045917,1.6987,3826.1,3826.0,18.7435]
[1754593046119,1.6987,3826.1,3826.0,19.5335]
[1754593047318,42.4987,3826.1,3826.0,19.5335]
[1754593048112,41.4909,3826.1,3826.0,19.5335]
[1754593048314,41.1968,3826.1,3826.0,19.5335]
[1754593049322,42.2046,3826.1,3826.0,0.6953]
[1754593049525,42.2046,3826.1,3826.0,18.3124]
[1754593049824,42.2046,3826.1,3826.0,19.2368]
[1754593050029,42.2046,3826.1,3826.0,19.5365]
[1754593051526,1.6987,3826.0,3825.9,1.80706]
[1754593051824,1.6987,3826.0,3825.9,19.62306]
[1754593052023,1.6987,3826.0,3825.9,18.8007]
[1754593052226,1.6987,3826.0,3825.9,19.2348]
[1754593052426,1.6987,3826.0,3825.9,19.5325]
[1754593052735,40.8,3826.1,3826.0,0.81965]
[1754593052915,40.8,3826.1,3826.0,1.21795]
[1754593053120,41.0836,3826.1,3826.0,2.24115]
[1754593055025,41.8078,3826.1,3826.0,20.05415]
[1754593055521,40.8,3826.1,3826.0,20.05415]
[1754593055825,41.0836,3826.1,3826.0,20.05415]
[1754593056922,41.8078,3826.1,3826.0,20.05415]
[1754593057518,41.0836,3826.1,3826.0,20.05415]
[1754593057717,40.8,3826.1,3826.0,20.05415]
[1754593058323,41.0836,3826.1,3826.0,20.05415]
[1754593059226,41.8078,3826.1,3826.0,20.05415]
[1754593059440,41.3632,3826.1,3826.0,20.05415]
[1754593059627,41.0836,3826.1,3826.0,20.05415]
[1754593060929,40.8,3826.1,3826.0,20.05415]
[1754593064930,41.086,3826.1,3826.0,20.05415]
[1754593065132,41.3703,3826.1,3826.0,20.05415]
[1754593065334,41.7839,3826.1,3826.0,20.05415]
[1754593066334,41.086,3826.1,3826.0,20.05415]
[1754593067135,0.52259,3826.5,3826.4,0.5226]
[1754593067341,2.17195,3826.8,3826.7,0.71714]
[1754593067632,1.6494,3826.8,3826.7,23.04834]
[1754593067845,1.6494,3826.8,3826.7,23.23424]
[1754593068239,42.4494,3826.8,3826.7,23.23424]
[1754593070844,40.8,3826.8,3826.7,22.02954]
[1754593071038,41.086,3826.8,3826.7,23.23424]
[1754593071443,41.7839,3826.8,3826.7,23.23424]
[1754593071743,40.8,3826.8,3826.7,23.23424]
[1754593071945,1.6494,3827.1,3827.0,2.22342]
[1754593072145,0.9515,3827.1,3827.0,20.02642]
[1754593072445,1.6494,3827.4,3827.3,2.22338]
[1754593072650,1.6494,3827.4,3827.3,23.23718]
[1754593072842,42.4494,3827.4,3827.3,23.23718]
[1754593073552,42.4494,3827.4,3827.3,22.66408]
[1754593073747,42.4494,3827.4,3827.3,22.21838]
[1754593074549,42.4494,3827.4,3827.3,22.66708]
[1754593075550,43.14486207,3827.4,3827.3,23.24018]
[1754593076145,41.49546207,3827.4,3827.3,23.24018]
[1754593076349,42.47936207,3827.4,3827.3,23.24018]
[1754593076548,41.49546207,3827.4,3827.3,23.24018]
[1754593076747,1.3634,3827.6,3827.5,1.20455]
[1754593076946,0.485,3827.6,3827.5,20.02735]
[1754593077153,1.6494,3828.0,3827.9,1.46429]
[1754593077454,1.6494,3828.0,3827.9,20.03429]
[1754593077655,42.4494,3828.0,3827.9,20.03429]
[1754593077853,43.14496445,3828.0,3827.9,20.03429]
[1754593079054,42.4494,3828.0,3827.9,20.03429]
[1754593079955,42.4494,3828.0,3827.9,19.5119]
[1754593083162,41.7515,3828.0,3827.9,19.5119]
[1754593083366,42.4494,3828.0,3827.9,19.5119]
[1754593083569,1.6494,3827.9,3827.8,0.5224]
[1754593083862,1.6494,3827.9,3827.8,18.3264]
[1754593084061,1.6494,3827.9,3827.8,18.521]
[1754593084277,1.6494,3827.9,3827.8,20.0243]
[1754593086254,2.17179,3827.9,3827.8,0.5224]
[1754593086461,1.6494,3827.9,3827.8,18.3244]
[1754593087066,1.6494,3827.9,3827.8,0.717]
[1754593087266,1.6494,3827.9,3827.8,18.515]
[1754593087561,1.6494,3827.9,3827.8,17.9926]
[1754593088068,1.6494,3827.9,3827.8,17.9906]
[1754593088263,1.6494,3827.9,3827.8,18.4363]
[1754593088863,1.6494,3827.9,3827.8,18.7124]
[1754593089869,1.6494,3827.9,3827.8,19.4969]
[1754593090969,1.6494,3827.9,3827.8,18.9238]
[1754593091466,1.6494,3827.9,3827.8,19.1999]
[1754593091667,1.6494,3827.9,3827.8,19.4969]
[1754593092666,1.6494,3827.9,3827.8,19.1999]
[1754593092863,1.6494,3827.9,3827.8,19.4969]
[1754593095767,0.52241,3827.8,3827.7,3.2078]
[1754593096068,1.6927,3827.7,3827.6,0.4839]
[1754593096261,1.3932,3827.1,3827.0,1.0977]
[1754593096461,1.6927,3827.1,3827.0,19.52922]
[1754593096778,1.6927,3827.1,3827.0,19.99372]
[1754593096971,0.48,3827.0,3826.5,3.2078]
[1754593097167,1.6927,3826.6,3826.5,21.0088]
[1754593097469,42.4927,3826.6,3826.5,21.0088]
[1754593097670,42.4927,3826.6,3826.5,22.2245]
[1754593097867,42.4927,3826.6,3826.5,22.689]
[1754593098474,40.8,3826.6,3826.5,22.689]
[1754593099375,1.6927,3827.4,3827.3,2.20267]
[1754593099574,1.6927,3827.4,3827.3,23.21947]
[1754593099768,42.4927,3827.4,3827.3,23.21947]
[1754593100170,0.2847,3828.0,3827.3,23.33567]
[1754593100371,1.2653,3827.8,3827.7,1.7724]
[1754593100670,42.4927,3827.8,3827.7,23.2374]
[1754593101074,40.8,3827.8,3827.7,23.2374]
[1754593101875,41.5121,3827.8,3827.7,23.2374]
[1754593102177,41.8116,3827.8,3827.7,23.2374]
[1754593103775,41.8116,3827.8,3827.7,22.2207]
[1754593104170,41.8116,3827.8,3827.7,22.9525]
[1754593104371,41.8116,3827.8,3827.7,23.2334]
[1754593104575,41.8116,3827.8,3827.7,22.711]
[1754593104776,41.8116,3827.8,3827.7,21.6983]
[1754593105172,41.8116,3827.8,3827.7,22.711]
[1754593105372,41.8116,3827.8,3827.7,19.5032]
[1754593105672,41.8116,3827.8,3827.7,0.4839]
[1754593105876,41.8116,3827.8,3827.7,18.3069]
[1754593106977,41.8116,3827.8,3827.7,0.193]
[1754593107277,41.8116,3827.8,3827.7,18.015]
[1754593107574,41.8116,3827.8,3827.7,18.012]
[1754593107968,41.8116,3827.8,3827.7,18.3029]
[1754593108174,41.8116,3827.8,3827.7,18.7331]
[1754593108375,41.8116,3827.8,3827.7,0.9141]
[1754593108573,41.8116,3827.8,3827.7,18.7321]
[1754593108773,41.8116,3827.8,3827.7,19.0337]
[1754593108974,41.8116,3827.8,3827.7,1.2157]
[1754593110076,41.8116,3827.8,3827.7,4.7044]
[1754593110285,41.8116,3827.8,3827.7,4.888]
[1754593113282,41.8116,3827.8,3827.7,4.6071]
[1754593114386,41.8116,3827.8,3827.7,4.888]
[1754593115686,40.8,3827.8,3827.7,4.888]
[1754593115887,41.8116,3827.8,3827.7,4.888]
[1754593116682,1.6927,3827.8,3827.7,4.888]
[1754593117187,42.4927,3827.8,3827.7,4.888]
[1754593117986,41.4811,3827.8,3827.7,4.888]
[1754593118284,41.8116,3827.8,3827.7,4.6071]
[1754593118587,41.8116,3827.8,3827.7,4.888]
[1754593119988,40.8,3827.8,3827.7,4.888]
[1754593120286,41.8116,3827.8,3827.7,4.888]
[1754593120783,41.0847,3827.8,3827.7,4.888]
[1754593120990,41.0847,3827.8,3827.7,5.09786616]
[1754593121287,41.0847,3827.8,3827.7,4.888]
[1754593121490,41.3842,3827.8,3827.7,4.888]
[1754593122080,41.3842,3827.8,3827.7,5.09607368]
[1754593122285,41.3842,3827.8,3827.7,4.888]
[1754593123086,41.83,3827.8,3827.7,4.888]
[1754593127098,41.83,3827.8,3827.7,22.681]
[1754593128698,1.7106,3827.8,3827.7,22.681]
[1754593129898,1.7106,3827.8,3827.7,22.68]
[1754593130495,41.0961,3828.3,3828.2,1.74134]
[1754593130691,42.07425975,3828.3,3828.2,2.23064]
[1754593130892,1.2102,3828.7,3828.6,1.18918]
[1754593131096,1.6971,3828.7,3828.6,23.23038]
[1754593131502,41.7552,3828.7,3828.6,23.23038]
[1754593131707,42.0513,3828.7,3828.6,23.23038]
[1754593132009,42.4971,3828.7,3828.6,23.23038]
[1754593132204,42.0102,3828.7,3828.6,23.23038]
[1754593132611,42.3063,3828.7,3828.6,23.23038]
[1754593132797,42.0102,3828.7,3828.6,23.23038]
[1754593133211,42.3063,3828.7,3828.6,23.23038]
[1754593134410,41.2898,3828.7,3828.6,23.23038]
[1754593134907,42.3063,3828.7,3828.6,23.23038]
[1754593135113,42.3063,3828.7,3828.6,22.74538]
[1754593135305,42.3063,3828.7,3828.6,23.23038]
[1754593145414,41.2898,3828.7,3828.6,23.23038]
[1754593145616,41.5859,3828.7,3828.6,23.23038]
[1754593145817,41.8605,3828.7,3828.6,23.23038]
[1754593146816,42.3063,3828.7,3828.6,23.23038]
[1754593148122,42.3063,3828.7,3828.6,22.93218]
[1754593149221,42.3063,3828.7,3828.6,3.2078]
[1754593149419,0.6806,3828.6,3828.5,0.52229]
[1754593149619,1.6971,3828.6,3828.5,18.31029]
[1754593150717,1.6971,3828.6,3828.5,19.42569]
[1754593150922,1.6971,3828.6,3828.5,20.01859]
[1754593151121,1.6971,3828.6,3828.5,2.23059]
[1754593151324,1.6971,3828.6,3828.5,20.01859]
[1754593152727,1.6971,3828.6,3828.5,18.95339]
[1754593152927,1.6971,3828.6,3828.5,20.01249]
[1754593156424,0.4898,3828.6,3828.5,20.01249]
[1754593156945,0.7728,3828.6,3828.5,20.01249]
[1754593157131,0.4898,3828.6,3828.5,20.01249]
[1754593157730,1.0579,3828.6,3828.5,20.01249]
[1754593158524,1.5094,3828.6,3828.5,20.01249]
[1754593158725,1.7116,3828.6,3828.5,20.01249]
[1754593159318,40.8,3828.7,3828.5,20.01249]
[1754593159523,40.8,3828.7,3828.6,3.8925]
[1754593159828,40.8,3828.7,3828.6,4.9325]
[1754593160023,1.0,3829.0,3828.6,4.51348]
[1754593160231,1.0,3829.0,3828.9,2.24694]
[1754593160528,1.0,3829.0,3828.9,20.03394]
[1754593160826,1.283,3829.0,3828.9,20.03394]
[1754593161221,1.4826,3829.0,3828.9,20.03394]
[1754593161435,2.2192,3829.0,3828.9,20.03394]
[1754593161822,1.0,3829.0,3828.9,20.03394]
[1754593164630,1.283,3829.0,3828.9,20.03394]
[1754593164827,2.4318,3829.0,3828.9,18.81214]
[1754593165132,2.7169,3829.0,3828.9,18.30724]
[1754593165831,2.7169,3829.0,3828.9,0.52224]
[1754593166035,2.7169,3829.0,3828.9,18.30724]
[1754593166425,2.7169,3829.0,3828.9,18.95384]
[1754593166626,2.7169,3829.0,3828.9,20.03194]
[1754593168834,2.7169,3829.0,3828.9,18.50904]
[1754593169629,2.7169,3829.0,3828.9,1.16884]
[1754593169830,2.7169,3829.0,3828.9,18.95384]
[1754593171535,2.7169,3829.0,3828.9,19.25694]
[1754593172235,2.7169,3829.0,3828.9,0.72404]
[1754593172435,2.7169,3829.0,3828.9,18.30624]
[1754593174936,2.7169,3829.0,3828.9,19.24424]
[1754593175136,2.7169,3829.0,3828.9,20.03094]
[1754593179640,1.0,3829.0,3828.9,20.03094]
[1754593181535,0.4826,3829.8,3829.7,0.2018]
[1754593181846,0.9803,3829.8,3829.7,23.23861]
[1754593182039,41.7803,3829.8,3829.7,23.23861]
[1754593182241,41.8196,3829.8,3829.7,23.23861]
[1754593184943,40.8,3829.8,3829.7,23.23861]
[1754593185142,1.40646144,3831.3,3830.9,0.52193]
[1754593185343,1.6718,3831.1,3831.0,17.783]
[1754593185535,42.4718,3831.1,3831.0,17.783]
[1754593185746,43.1749917,3831.1,3831.0,17.783]
[1754593186242,0.9998,3830.4,3830.3,3.2078]
[1754593186446,1.30484,3831.0,3830.1,17.784]
[1754593186447,1.6718,3830.2,3830.1,17.784]
[1754593186643,1.6718,3830.2,3829.8,3.2078]
[1754593186644,0.672,3830.2,3829.8,3.2078]
[1754593186845,1.6718,3829.8,3829.7,5.2382]
[1754593187142,1.6718,3829.8,3829.7,23.0462]
[1754593187346,1.6718,3829.8,3829.7,21.0168]
[1754593187543,1.6718,3829.8,3829.7,3.2078]
[1754593187850,4.51287,3830.4,3829.5,17.81]
[1754593187851,1.6718,3829.6,3829.5,17.81]
[1754593188442,42.4718,3829.6,3829.5,17.81]
[1754593188640,0.672,3829.4,3829.3,21.0188]
[1754593188843,1.6718,3829.4,3829.3,21.0188]
[1754593189150,1.6718,3829.4,3829.3,3.2078]
[1754593189849,0.957,3829.0,3828.9,3.2078]
[1754593190050,1.3868,3829.0,3828.9,3.2078]
[1754593190353,1.6718,3829.0,3828.9,21.0198]
[1754593190743,1.6718,3829.0,3828.9,3.2078]
[1754593192347,1.6718,3829.0,3828.9,3.41314452]
[1754593193644,42.4718,3829.0,3828.9,0.20534452]
[1754593196954,42.4718,3829.0,3828.3,18.8468]
[1754593196955,0.672,3828.4,3828.3,19.5182]
[1754593197155,2.19409,3828.4,3828.3,19.72350791]
[1754593197754,2.19409,3828.4,3828.3,0.39330791]
[1754593198061,2.19409,3828.4,3828.3,1.91050791]
[1754593198655,2.19409,3828.4,3828.3,0.39330791]
[1754593198852,2.19409,3828.4,3828.3,0.20530791]
[1754593199650,42.99409,3828.4,3828.3,0.20530791]
[1754593200057,2.19414,3828.0,3827.9,1.7052]
[1754593200252,2.19414,3828.0,3827.9,1.91044246]
[1754593200557,2.19414,3828.0,3827.9,1.9104252]
[1754593200860,2.19414,3828.0,3827.9,1.6134252]
[1754593201461,2.19414,3828.0,3827.9,1.9104252]
[1754593201659,1.91854,3828.0,3827.9,1.9104252]
[1754593201859,42.10575,3828.4,3828.2,1.0338]
[1754593201860,0.52231,3828.3,3828.2,1.0338]
[1754593202058,41.3223,3828.4,3828.3,1.19371]
[1754593202252,40.8,3828.4,3828.3,2.4327352]
[1754593202759,40.8,3828.4,3828.3,19.7174252]
[1754593202967,41.7998,3828.4,3828.3,19.7174252]
[1754593203164,40.8,3828.4,3828.3,18.2002252]
[1754593203467,40.8,3828.4,3828.3,1.9104252]
[1754593203468,41.7998,3828.4,3828.3,1.9104252]
[1754593204060,41.7998,3828.4,3828.3,0.2052252]
[1754593204467,41.7998,3828.4,3828.3,1.9104252]
[1754593205062,41.7998,3828.4,3828.3,1.91026617]
[1754593207869,41.7998,3828.4,3828.3,1.7052]
[1754593208071,41.7998,3828.4,3828.3,1.91018899]
[1754593209070,41.7998,3828.4,3828.3,0.67948899]
[1754593210375,2.19417,3827.8,3827.7,4.913]
[1754593210580,1.6718,3827.8,3827.7,5.11787199]
[1754593211168,0.9476,3827.8,3827.7,5.11787199]
[1754593211670,0.285,3828.3,3828.2,0.2865]
[1754593211874,41.3223,3828.4,3828.2,1.39858199]
[1754593212174,41.5979,3828.4,3828.3,1.91007199]
[1754593212770,41.8829,3828.4,3828.3,1.91007199]
[1754593212971,41.3606,3828.4,3828.3,1.91007199]
[1754593213776,41.8014,3828.4,3828.3,1.91007199]
[1754593214276,41.8014,3828.4,3828.3,1.90998796]
[1754593214976,41.8014,3828.4,3828.3,1.31048796]
[1754593215177,41.8014,3828.4,3828.3,0.67928796]
[1754593215482,41.8014,3828.4,3828.3,1.39568796]
[1754593215782,41.8014,3828.4,3828.3,1.86398796]
[1754593217378,41.8014,3828.4,3828.3,1.86416688]
[1754593218881,40.8,3828.4,3828.3,1.86416688]
[1754593219082,41.8403,3828.4,3828.3,1.86416688]
[1754593220180,41.8403,3828.4,3828.3,1.86452328]
[1754593220882,40.8,3828.4,3828.3,1.86452328]
[1754593221182,19.43488,3829.2,3829.1,0.1971]
[1754593221483,1.91728,3829.2,3829.1,0.20532328]
[1754593221686,43.01468,3829.2,3829.1,0.20532328]
[1754593222388,43.01468,3829.2,3829.1,1.86282328]
[1754593222590,40.8,3829.2,3829.1,1.86282328]
[1754593223279,41.1021,3829.2,3829.1,1.86282328]
[1754593223686,41.8403,3829.2,3829.1,1.86282328]
[1754593225483,40.8,3829.2,3829.1,5.07062328]
[1754593225689,2.21462,3829.7,3829.6,1.6575]
[1754593225886,2.21462,3829.7,3829.6,1.58086026]
[1754593226083,43.01462,3829.7,3829.6,1.3744]
[1754593226294,43.01462,3829.7,3829.6,0.20646618]
[1754593226684,60.81362,3829.7,3829.6,0.20646618]
[1754593227405,59.77332,3829.7,3829.6,0.40356618]
[1754593227591,43.01462,3829.7,3829.6,0.83686618]
[1754593227893,43.01462,3829.7,3829.6,1.39526618]
[1754593228194,43.01462,3829.7,3829.6,1.86396618]
[1754593229297,43.01462,3829.7,3829.6,1.86384069]
[1754593229593,43.01462,3829.7,3829.6,1.58074069]
[1754593229794,43.01462,3829.7,3829.6,0.40344069]
[1754593229994,43.01462,3829.7,3829.6,1.11244069]
[1754593230292,42.36242,3829.7,3829.6,1.86384069]
[1754593230493,42.36242,3829.7,3829.6,0.20634069]
[1754593230690,60.15542,3829.7,3829.6,0.20634069]
[1754593231697,42.36242,3829.7,3829.6,0.20634069]
[1754593231998,60.15442,3829.7,3829.6,0.20634069]
[1754593232297,60.15442,3829.7,3829.6,1.86384069]
[1754593232896,59.6323,3829.7,3829.6,1.86384069]
[1754593233794,41.8403,3829.7,3829.6,1.86384069]
[1754593235198,0.52202,3830.5,3829.7,1.3053]
[1754593235398,1.77372,3830.5,3830.4,4.1493]
[1754593235697,1.17423,3830.3,3830.2,1.3748]
[1754593235898,20.00553,3830.3,3830.2,1.0917]
[1754593236397,19.4835,3830.3,3830.2,4.8653]
[1754593236697,1.6925,3830.3,3830.2,5.07103197]
[1754593237600,40.8,3830.5,3830.4,1.6575]
[1754593237808,41.1021,3830.5,3830.4,1.6575]
[1754593238301,41.3995,3830.5,3830.4,1.6575]
[1754593238596,41.8403,3830.5,3830.4,1.6575]
[1754593238896,42.06022,3830.5,3830.2,3.72984]
[1754593239092,0.6522,3830.3,3830.2,5.38734]
[1754593239291,1.6925,3830.3,3830.2,5.38734]
[1754593240594,40.8,3830.5,3830.4,0.52202]
[1754593240890,0.6522,3830.3,3830.2,3.2078]
[1754593241097,0.1915,3829.8,3829.7,1.3818]
[1754593241294,1.6925,3829.8,3829.7,0.20559869]
[1754593241893,42.4925,3829.8,3829.7,0.20559869]
[1754593242400,42.4925,3829.8,3829.7,1.86309869]
[1754593243492,40.8,3829.8,3829.7,1.86309869]
[1754593243793,41.5,3829.8,3829.7,1.86309869]
[1754593243998,41.7918,3829.8,3829.7,1.86316447]
[1754593244495,0.6837,3829.6,3829.5,3.7067]
[1754593244692,0.6837,3829.6,3829.5,3.4133985]
[1754593244891,1.6755,3829.6,3829.5,3.4133985]
[1754593245996,1.6755,3829.6,3829.5,3.9122985]
[1754593246200,1.6755,3829.6,3829.5,5.1278985]
[1754593246701,40.8,3829.8,3829.7,1.7145]
[1754593246900,41.7918,3829.8,3829.7,1.9200985]
[1754593248401,41.7918,3829.8,3829.7,0.2055985]
[1754593248998,41.7918,3829.8,3829.7,0.7044985]
[1754593249199,41.7918,3829.8,3829.7,1.1547985]
[1754593249703,41.7918,3829.8,3829.7,1.9200985]
[1754593249905,40.8,3829.8,3829.7,1.9201934]
[1754593250397,41.0918,3829.8,3829.7,1.9201934]
[1754593250601,41.3734,3829.8,3829.7,1.9201934]
[1754593251505,41.7918,3829.8,3829.7,0.2056934]
[1754593252506,0.6837,3829.6,3829.5,3.7067]
[1754593252697,1.6755,3829.6,3829.5,4.157]
[1754593252899,1.6755,3829.6,3829.5,3.2078]
[1754593254306,1.3848,3829.6,3829.3,0.52216]
[1754593254610,1.6755,3829.4,3829.3,1.7145]
[1754593256207,1.62427,3829.3,3829.2,0.52218]
[1754593256410,2.19767,3829.3,3829.2,0.1946]
[1754593256711,1.1957,3829.2,3829.1,3.2078]
[1754593256908,1.6755,3829.2,3829.1,3.2078]
[1754593257407,42.4755,3829.2,3829.1,3.2078]
[1754593258207,42.4755,3829.2,3829.1,3.4024]
[1754593258508,42.4755,3829.2,3829.1,3.8527]
[1754593258709,42.4755,3829.2,3829.1,4.157]
[1754593259708,42.4755,3829.2,3829.1,3.5908]
[1754593259902,42.4755,3829.2,3829.1,0.1946]
[1754593260305,0.5222,3829.1,3828.9,0.275]
[1754593260508,2.19773,3828.9,3828.8,0.4989]
[1754593260701,2.19773,3828.9,3828.8,0.1946]
[1754593261207,42.99773,3828.9,3828.8,0.1946]
[1754593263726,2.19775,3828.7,3828.5,3.2078]
[1754593264015,1.6755,3828.6,3828.5,3.2078]
[1754593264403,2.29747,3828.6,3828.2,1.0272]
[1754593264601,2.19781,3828.3,3828.2,1.7145]
[1754593264802,2.19781,3828.3,3828.2,1.4126]
[1754593265009,2.19781,3828.3,3828.2,1.1376]
[1754593265211,42.99781,3828.3,3828.2,1.1376]
[1754593265601,42.99781,3828.3,3828.2,1.7145]
[1754593267612,42.99781,3828.3,3828.1,0.52233]
[1754593267613,1.20603,3828.1,3828.0,4.9223]
[1754593268010,2.19783,3828.1,3828.0,4.9223]
[1754593268212,0.4855,3827.7,3827.6,5.14279]
[1754593268520,0.4855,3827.7,3827.6,5.44469]
[1754593268521,1.6755,3827.7,3827.6,5.44469]
[1754593269504,1.6755,3827.7,3827.6,4.9223]
[1754593270415,1.6755,3827.7,3827.6,4.6204]
[1754593270721,2.19794,3827.3,3827.2,1.4126]
[1754593270917,0.4866,3827.3,3827.2,1.4126]
[1754593271115,41.0918,3827.3,3827.2,1.7145]
[1754593271319,41.3734,3827.3,3827.2,1.7145]
[1754593271615,41.7918,3827.3,3827.2,1.7145]
[1754593274219,41.7918,3827.3,3827.1,3.2078]
[1754593274220,1.6735,3826.8,3826.7,4.4638]
[1754593274820,1.6735,3826.8,3826.7,4.9028]
[1754593274821,1.2259,3826.8,3826.7,4.9028]
[1754593275020,1.18469,3827.0,3826.9,0.6771]
[1754593275321,42.99599,3827.0,3826.9,1.695]
[1754593277421,2.19605,3826.5,3826.4,1.695]
[1754593278220,2.19605,3826.5,3826.1,0.00915]
[1754593278221,2.19609,3826.2,3826.1,0.00915]
[1754593278618,2.19609,3826.2,3826.1,1.70415]
[1754593278813,42.99609,3826.2,3826.1,1.70415]
[1754593279019,42.26609,3826.2,3826.1,1.70415]
[1754593279216,40.8,3826.2,3826.1,2.22676]
[1754593279417,0.52254,3826.6,3826.5,1.0728]
[1754593279617,0.52254,3826.6,3826.5,1.5118]
[1754593280216,0.52253,3826.7,3826.5,1.5118]
[1754593280424,40.8,3826.6,3826.5,1.5118]
[1754593280820,0.52243,3827.4,3827.1,0.52246]
[1754593281020,1.74833,3827.4,3827.3,1.5118]
[1754593281320,42.99593,3827.4,3827.3,1.5118]
[1754593281914,42.99593,3827.4,3827.3,0.4933]
[1754593282115,1.18466,3827.2,3827.1,0.4933]
[1754593282326,2.19596,3827.2,3827.1,0.4933]
[1754593282828,58.635,3827.4,3826.9,1.5118]
[1754593282829,2.19598,3827.0,3826.9,1.5118]
[1754593283220,2.19598,3827.0,3826.9,1.3936]
[1754593283520,1.6735,3827.0,3826.9,1.5118]
[1754593285027,1.6735,3827.0,3826.9,1.2098]
[1754593285527,1.6735,3827.0,3826.9,1.3936]
[1754593285723,1.6735,3827.0,3826.9,1.5118]
[1754593287230,1.6735,3827.0,3826.9,0.4933]
[1754593287727,1.6735,3827.0,3826.6,0.7165]
[1754593287920,1.6735,3826.4,3826.0,0.1182]
[1754593288157,3.2078,3826.7,3826.0,0.1182]
[1754593288158,2.1961,3826.2,3826.1,0.9323]
[1754593288528,42.9961,3826.2,3826.1,0.9323]
[1754593289033,42.9961,3826.2,3826.1,1.2098]
[1754593289226,1.18482,3826.0,3825.9,1.14284277]
[1754593289527,0.52275,3825.1,3824.9,0.52276]
[1754593289730,0.6622,3825.1,3825.0,1.5118]
[1754593289927,1.18494,3825.1,3825.0,1.3936]
[1754593290130,1.6735,3825.1,3825.0,1.5118]
[1754593290326,0.52272,3825.3,3825.0,2.03455]
[1754593290633,0.5227,3825.5,3825.4,1.5118]
[1754593291134,42.334,3825.5,3825.4,1.5118]
[1754593292034,42.334,3825.5,3825.2,3.73052]
[1754593292035,1.91382,3825.3,3825.2,1.5118]
[1754593292226,41.0813,3825.5,3825.4,0.9546]
[1754593292431,3.9367,3826.4,3826.3,1.4476]
[1754593292732,3.2078,3826.4,3826.3,1.4476]
[1754593293340,44.2891,3826.4,3826.3,1.4476]
[1754593294029,41.0813,3826.4,3826.3,1.4476]
[1754593294735,41.5289,3826.4,3826.3,1.4476]
[1754593295237,41.8113,3826.4,3826.3,1.4476]
[1754593295534,40.8,3826.4,3826.3,1.3294]
[1754593295731,40.8,3826.4,3826.3,1.4476]
[1754593296028,41.0813,3826.4,3826.3,1.4476]
[1754593296233,41.8113,3826.4,3826.3,1.4476]
[1754593297728,41.8113,3826.4,3826.3,1.3294]
[1754593297927,41.8113,3826.4,3826.3,1.1456]
[1754593298133,1.2071,3826.0,3825.9,3.2078]
[1754593298330,1.6735,3826.0,3825.9,4.2806]
[1754593298636,1.6735,3826.0,3825.9,4.6554]
[1754593298832,0.9435,3826.0,3825.9,4.6554]
[1754593299835,0.4751,3826.0,3825.9,4.6554]
[1754593300430,0.2824,3826.3,3825.9,5.96197]
[1754593300634,40.8,3826.4,3826.3,1.4476]
[1754593300832,41.0813,3826.4,3826.3,1.4476]
[1754593301033,41.0813,3826.4,3826.3,4.6554]
[1754593301335,41.8113,3826.4,3826.3,4.6554]
[1754593302731,40.8,3826.4,3826.3,4.6554]
[1754593302932,41.8212,3826.4,3826.3,4.6554]
[1754593303136,40.8,3826.4,3826.3,4.6554]